[Event "Titled Tuesday Blitz July 25 Early 2023"]
[White "Giri, Anish"]
[Black "Bernadskiy, Vitaliy"]
[WhiteFideId "24116068"]
[BlackFideId "14100371"]
[WhiteElo "3055"]
[BlackElo "2892"]
[Result "1-0"]
[Round "7"]
[TimeControl "180+2"]
[Date "2023.07.25"]
[WhiteClock "0:01:41"]
[BlackClock "0:00:35"]
[Board "6"]

1. e4 {[%clk 0:03:00]}  c5 {[%clk 0:02:59]} 2. Nf3 {[%clk 0:03:00]}  d6 {[%clk 0:02:59]} 3. d4 {[%clk 0:03:00]}  cxd4 {[%clk 0:03:00]} 4. Nxd4 {[%clk 0:03:00]}  Nf6 {[%clk 0:03:00]} 5. Nc3 {[%clk 0:03:01]}  g6 {[%clk 0:03:01]} 6. Be3 {[%clk 0:03:01]}  Nc6 {[%clk 0:03:01]} 7. f3 {[%clk 0:02:59]}  h5 {[%clk 0:03:01]} 8. Bc4 {[%clk 0:03:00]}  Bd7 {[%clk 0:02:59]} 9. Bb3 {[%clk 0:02:58]}  Bg7 {[%clk 0:02:56]} 10. O-O {[%clk 0:02:52]}  Na5 {[%clk 0:02:55]} 11. Qd3 {[%clk 0:02:51]}  Nxb3 {[%clk 0:02:53]} 12. axb3 {[%clk 0:02:51]}  O-O {[%clk 0:02:52]} 13. h3 {[%clk 0:02:50]}  a6 {[%clk 0:02:45]} 14. f4 {[%clk 0:02:47]}  e5 {[%clk 0:02:38]} 15. Nde2 {[%clk 0:02:47]}  exf4 {[%clk 0:02:17]} 16. Rxf4 {[%clk 0:02:47]}  Re8 {[%clk 0:02:10]} 17. Bd4 {[%clk 0:02:31]}  Bc6 {[%clk 0:02:09]} 18. Raf1 {[%clk 0:02:23]}  Re6 {[%clk 0:02:08]} 19. Nd5 {[%clk 0:02:09]}  Bxd5 {[%clk 0:01:17]} 20. exd5 {[%clk 0:01:50]}  Nxd5 {[%clk 0:00:42]} 21. Rxf7 {[%clk 0:01:48]}  Be5 {[%clk 0:00:38]} 22. Bxe5 {[%clk 0:01:43]}  dxe5 {[%clk 0:00:35]} 23. Rf8+ {[%clk 0:01:41]} 1-0


[Site "https://www.chess.com"]

[Event "Titled Tuesday Blitz July 25 Early 2023"]
[White "Duda, Jan-Krzysztof"]
[Black "Kezin, Roman"]
[WhiteFideId "1170546"]
[BlackFideId "24124621"]
[WhiteElo "3002"]
[BlackElo "2840"]
[Result "1-0"]
[Round "7"]
[TimeControl "180+2"]
[Date "2023.07.25"]
[WhiteClock "0:01:11"]
[BlackClock "0:00:01"]
[Board "9"]

1. e4 {[%clk 0:03:00]}  c5 {[%clk 0:02:53]} 2. g3 {[%clk 0:03:00]}  h5 {[%clk 0:02:51]} 3. Bg2 {[%clk 0:02:59]}  h4 {[%clk 0:02:51]} 4. g4 {[%clk 0:02:59]}  d5 {[%clk 0:02:38]} 5. exd5 {[%clk 0:02:52]}  Nf6 {[%clk 0:02:31]} 6. h3 {[%clk 0:02:51]}  Nxd5 {[%clk 0:02:30]} 7. d3 {[%clk 0:02:50]}  Nc6 {[%clk 0:02:20]} 8. Nc3 {[%clk 0:02:47]}  Nc7 {[%clk 0:01:49]} 9. b3 {[%clk 0:02:38]}  g6 {[%clk 0:01:46]} 10. Bb2 {[%clk 0:02:37]}  Bg7 {[%clk 0:01:47]} 11. Bxc6+ {[%clk 0:02:32]}  bxc6 {[%clk 0:01:48]} 12. Qd2 {[%clk 0:02:33]}  Ne6 {[%clk 0:01:41]} 13. Na4 {[%clk 0:02:21]}  Qd5 {[%clk 0:01:23]} 14. Bxg7 {[%clk 0:02:02]}  Nxg7 {[%clk 0:01:22]} 15. Qc3 {[%clk 0:01:56]}  Qxh1 {[%clk 0:01:07]} 16. Qxg7 {[%clk 0:01:53]}  Qxg1+ {[%clk 0:01:04]} 17. Ke2 {[%clk 0:01:53]}  Bxg4+ {[%clk 0:01:04]} 18. Ke3 {[%clk 0:01:54]}  Qg2 {[%clk 0:00:34]} 19. Qxh8+ {[%clk 0:01:50]}  Kd7 {[%clk 0:00:34]} 20. Nxc5+ {[%clk 0:01:49]}  Kc7 {[%clk 0:00:32]} 21. Qe5+ {[%clk 0:01:45]}  Kb6 {[%clk 0:00:28]} 22. hxg4 {[%clk 0:01:43]}  Qxg4 {[%clk 0:00:20]} 23. Ne4 {[%clk 0:01:33]}  Qd7 {[%clk 0:00:12]} 24. Rh1 {[%clk 0:01:31]}  h3 {[%clk 0:00:07]} 25. Qc5+ {[%clk 0:01:29]}  Kb7 {[%clk 0:00:04]} 26. Qc4 {[%clk 0:01:25]}  Kc7 {[%clk 0:00:02]} 27. Qxf7 {[%clk 0:01:25]}  Rh8 {[%clk 0:00:02]} 28. Qg7 {[%clk 0:01:15]}  Qd8 {[%clk 0:00:01]} 29. Qxg6 {[%clk 0:01:11]}  Rg8 {[%clk 0:00:01]} 1-0


[Site "https://www.chess.com"]

[Event "Titled Tuesday Blitz July 25 Early 2023"]
[White "Terry, Renato"]
[Black "Csonka, Balazs"]
[WhiteFideId "3803457"]
[BlackFideId "742910"]
[WhiteElo "2957"]
[BlackElo "2764"]
[Result "1-0"]
[Round "7"]
[TimeControl "180+2"]
[Date "2023.07.25"]
[WhiteClock "0:01:57"]
[BlackClock "0:00:14"]
[Board "15"]

1. d4 {[%clk 0:03:00]}  Nf6 {[%clk 0:02:59]} 2. Nf3 {[%clk 0:03:01]}  d5 {[%clk 0:02:53]} 3. c4 {[%clk 0:03:01]}  c6 {[%clk 0:02:52]} 4. Nc3 {[%clk 0:03:01]}  e6 {[%clk 0:02:50]} 5. Bg5 {[%clk 0:03:01]}  dxc4 {[%clk 0:02:48]} 6. e4 {[%clk 0:03:01]}  b5 {[%clk 0:02:49]} 7. e5 {[%clk 0:03:01]}  h6 {[%clk 0:02:48]} 8. Bh4 {[%clk 0:03:02]}  g5 {[%clk 0:02:48]} 9. exf6 {[%clk 0:03:02]}  gxh4 {[%clk 0:02:48]} 10. Ne5 {[%clk 0:03:03]}  Qxf6 {[%clk 0:02:47]} 11. g3 {[%clk 0:03:03]}  Nd7 {[%clk 0:02:43]} 12. Qe2 {[%clk 0:03:02]}  Bd6 {[%clk 0:01:43]} 13. f4 {[%clk 0:02:56]}  Bb7 {[%clk 0:01:35]} 14. Bg2 {[%clk 0:02:55]}  a6 {[%clk 0:01:28]} 15. O-O-O {[%clk 0:02:47]}  Qe7 {[%clk 0:00:57]} 16. Bxc6 {[%clk 0:02:35]}  Bxe5 {[%clk 0:00:43]} 17. Bxb7 {[%clk 0:02:35]}  Ra7 {[%clk 0:00:38]} 18. dxe5 {[%clk 0:02:09]}  Rxb7 {[%clk 0:00:38]} 19. Ne4 {[%clk 0:02:09]}  O-O {[%clk 0:00:34]} 20. gxh4 {[%clk 0:02:07]}  f5 {[%clk 0:00:25]} 21. Rhg1+ {[%clk 0:01:57]}  Kh8 {[%clk 0:00:21]} 22. Nd6 {[%clk 0:01:57]}  Ra7 {[%clk 0:00:19]} 23. Qh5 {[%clk 0:01:57]}  Qh7 {[%clk 0:00:14]} 24. Rg6 {[%clk 0:01:57]} 1-0


[Site "https://www.chess.com"]

[Event "Titled Tuesday Blitz July 25 Early 2023"]
[White "Matinian, Nikita"]
[Black "ChessBrah"]
[WhiteFideId "24129100"]
[WhiteElo "2757"]
[BlackElo "2934"]
[Result "0-1"]
[Round "7"]
[TimeControl "180+2"]
[Date "2023.07.25"]
[WhiteClock "0:00:00"]
[BlackClock "0:00:13"]
[Board "16"]

1. e4 {[%clk 0:03:00]}  c5 {[%clk 0:02:59]} 2. Nf3 {[%clk 0:03:01]}  e6 {[%clk 0:03:00]} 3. d4 {[%clk 0:03:01]}  cxd4 {[%clk 0:03:01]} 4. Nxd4 {[%clk 0:03:02]}  a6 {[%clk 0:03:01]} 5. Nc3 {[%clk 0:03:03]}  Qc7 {[%clk 0:03:02]} 6. Bd3 {[%clk 0:03:00]}  Nf6 {[%clk 0:03:02]} 7. Qe2 {[%clk 0:02:59]}  d6 {[%clk 0:03:01]} 8. f4 {[%clk 0:02:59]}  b5 {[%clk 0:03:02]} 9. a3 {[%clk 0:02:56]}  Bb7 {[%clk 0:03:02]} 10. Bd2 {[%clk 0:02:54]}  Nbd7 {[%clk 0:03:02]} 11. g4 {[%clk 0:02:54]}  Nc5 {[%clk 0:03:02]} 12. g5 {[%clk 0:02:55]}  Nfd7 {[%clk 0:03:02]} 13. b4 {[%clk 0:02:45]}  Nxd3+ {[%clk 0:03:01]} 14. cxd3 {[%clk 0:02:46]}  Be7 {[%clk 0:02:53]} 15. Rc1 {[%clk 0:02:46]}  Qd8 {[%clk 0:02:54]} 16. h4 {[%clk 0:02:45]}  Rc8 {[%clk 0:02:53]} 17. f5 {[%clk 0:02:41]}  e5 {[%clk 0:02:51]} 18. Nf3 {[%clk 0:02:35]}  h6 {[%clk 0:02:49]} 19. Kf2 {[%clk 0:02:29]}  Nb6 {[%clk 0:02:32]} 20. Rcg1 {[%clk 0:02:27]}  d5 {[%clk 0:02:24]} 21. f6 {[%clk 0:01:34]}  gxf6 {[%clk 0:02:24]} 22. gxh6 {[%clk 0:01:34]}  dxe4 {[%clk 0:02:24]} 23. Nxe4 {[%clk 0:01:27]}  Nd5 {[%clk 0:02:24]} 24. h7 {[%clk 0:01:12]}  Rxh7 {[%clk 0:02:24]} 25. Rg8+ {[%clk 0:01:12]}  Bf8 {[%clk 0:02:24]} 26. Nc5 {[%clk 0:00:57]}  Qb6 {[%clk 0:02:24]} 27. Nxe5 {[%clk 0:00:47]}  fxe5 {[%clk 0:02:13]} 28. Qxe5+ {[%clk 0:00:48]}  Ne7 {[%clk 0:02:13]} 29. Re1 {[%clk 0:00:43]}  f6 {[%clk 0:02:11]} 30. Qf5 {[%clk 0:00:32]}  Rxc5 {[%clk 0:00:47]} 31. bxc5 {[%clk 0:00:32]}  Qc6 {[%clk 0:00:48]} 32. Re4 {[%clk 0:00:11]}  Rf7 {[%clk 0:00:14]} 33. Bh6 {[%clk 0:00:09]}  Kd8 {[%clk 0:00:14]} 34. Qh5 {[%clk 0:00:06]}  Nxg8 {[%clk 0:00:14]} 35. Qxf7 {[%clk 0:00:05]}  Bxc5+ {[%clk 0:00:13]} 36. Kf1 {[%clk 0:00:00]}  Nxh6 {[%clk 0:00:13]} 0-1


[Site "https://www.chess.com"]

[Event "Titled Tuesday Blitz July 25 Early 2023"]
[White "Cherniaiev, Tykhon"]
[Black "Tari, Aryan"]
[WhiteFideId "14182360"]
[BlackFideId "1510045"]
[WhiteElo "2728"]
[BlackElo "2919"]
[Result "0-1"]
[Round "7"]
[TimeControl "180+2"]
[Date "2023.07.25"]
[WhiteClock "0:00:11"]
[BlackClock "0:00:50"]
[Board "17"]

1. Nf3 {[%clk 0:03:00]}  Nf6 {[%clk 0:02:51]} 2. c4 {[%clk 0:03:00]}  g6 {[%clk 0:02:50]} 3. g3 {[%clk 0:03:00]}  Bg7 {[%clk 0:02:49]} 4. Bg2 {[%clk 0:03:00]}  O-O {[%clk 0:02:50]} 5. O-O {[%clk 0:02:59]}  c6 {[%clk 0:02:44]} 6. Nc3 {[%clk 0:02:59]}  d5 {[%clk 0:02:44]} 7. d4 {[%clk 0:02:56]}  dxc4 {[%clk 0:02:44]} 8. a4 {[%clk 0:02:47]}  Na6 {[%clk 0:02:30]} 9. Bg5 {[%clk 0:02:41]}  Nb4 {[%clk 0:02:24]} 10. Rc1 {[%clk 0:02:39]}  Be6 {[%clk 0:02:13]} 11. Bxf6 {[%clk 0:02:36]}  exf6 {[%clk 0:02:13]} 12. Ne4 {[%clk 0:02:35]}  b6 {[%clk 0:02:09]} 13. Ned2 {[%clk 0:02:03]}  b5 {[%clk 0:01:57]} 14. axb5 {[%clk 0:02:03]}  cxb5 {[%clk 0:01:58]} 15. b3 {[%clk 0:02:03]}  Na2 {[%clk 0:01:47]} 16. Ra1 {[%clk 0:01:52]}  Nc3 {[%clk 0:01:42]} 17. Qe1 {[%clk 0:01:51]}  cxb3 {[%clk 0:01:19]} 18. Nxb3 {[%clk 0:01:51]}  b4 {[%clk 0:01:19]} 19. Nfd2 {[%clk 0:01:42]}  Re8 {[%clk 0:01:15]} 20. e4 {[%clk 0:01:33]}  a5 {[%clk 0:01:07]} 21. Qe3 {[%clk 0:01:17]}  a4 {[%clk 0:01:06]} 22. Nc5 {[%clk 0:01:18]}  Qxd4 {[%clk 0:01:06]} 23. Qxd4 {[%clk 0:01:05]}  Ne2+ {[%clk 0:01:06]} 24. Kh1 {[%clk 0:01:05]}  Nxd4 {[%clk 0:01:07]} 25. Rxa4 {[%clk 0:01:05]}  Rxa4 {[%clk 0:01:06]} 26. Nxa4 {[%clk 0:01:06]}  Ba2 {[%clk 0:01:05]} 27. Nb6 {[%clk 0:00:42]}  f5 {[%clk 0:01:01]} 28. exf5 {[%clk 0:00:40]}  Nxf5 {[%clk 0:01:00]} 29. Rc1 {[%clk 0:00:27]}  Bd4 {[%clk 0:00:54]} 30. Nd5 {[%clk 0:00:23]}  Re2 {[%clk 0:00:53]} 31. Nf3 {[%clk 0:00:17]}  Bxd5 {[%clk 0:00:53]} 32. Nxd4 {[%clk 0:00:17]}  Bxg2+ {[%clk 0:00:53]} 33. Kxg2 {[%clk 0:00:18]}  Nxd4 {[%clk 0:00:53]} 34. Rc4 {[%clk 0:00:15]}  Nc2 {[%clk 0:00:53]} 35. Kf1 {[%clk 0:00:14]}  Rd2 {[%clk 0:00:52]} 36. h4 {[%clk 0:00:13]}  b3 {[%clk 0:00:51]} 37. Rc3 {[%clk 0:00:13]}  Nd4 {[%clk 0:00:51]} 38. Ke1 {[%clk 0:00:11]}  Re2+ {[%clk 0:00:51]} 39. Kd1 {[%clk 0:00:11]}  Rxf2 {[%clk 0:00:50]} 40. Rd3 {[%clk 0:00:11]}  b2 {[%clk 0:00:51]} 41. Rxd4 {[%clk 0:00:11]}  b1=Q# {[%clk 0:00:50]} 0-1


[Site "https://www.chess.com"]

[Event "Titled Tuesday Blitz July 25 Early 2023"]
[White "Plotkin, Mark"]
[Black "Andreikin, Dmitry"]
[WhiteFideId "2611651"]
[BlackFideId "4158814"]
[WhiteElo "2815"]
[BlackElo "3025"]
[Result "0-1"]
[Round "7"]
[TimeControl "180+2"]
[Date "2023.07.25"]
[WhiteClock "0:00:00"]
[BlackClock "0:00:08"]
[Board "20"]

1. e4 {[%clk 0:03:00]}  c5 {[%clk 0:02:55]} 2. Nf3 {[%clk 0:02:58]}  e6 {[%clk 0:02:55]} 3. d4 {[%clk 0:02:55]}  cxd4 {[%clk 0:02:56]} 4. Nxd4 {[%clk 0:02:56]}  a6 {[%clk 0:02:56]} 5. a3 {[%clk 0:02:55]}  Nf6 {[%clk 0:02:54]} 6. Bd3 {[%clk 0:02:55]}  Qc7 {[%clk 0:02:52]} 7. Nc3 {[%clk 0:02:54]}  Bc5 {[%clk 0:02:48]} 8. Nb3 {[%clk 0:02:52]}  Ba7 {[%clk 0:02:48]} 9. f4 {[%clk 0:02:51]}  d6 {[%clk 0:02:45]} 10. Qf3 {[%clk 0:02:45]}  Nc6 {[%clk 0:02:43]} 11. Be3 {[%clk 0:02:45]}  Bxe3 {[%clk 0:02:40]} 12. Qxe3 {[%clk 0:02:46]}  b5 {[%clk 0:02:40]} 13. g4 {[%clk 0:02:43]}  h6 {[%clk 0:02:31]} 14. O-O-O {[%clk 0:02:38]}  b4 {[%clk 0:02:28]} 15. axb4 {[%clk 0:02:36]}  Nxb4 {[%clk 0:02:28]} 16. Rhg1 {[%clk 0:02:33]}  Bb7 {[%clk 0:02:08]} 17. h4 {[%clk 0:02:23]}  h5 {[%clk 0:01:51]} 18. gxh5 {[%clk 0:02:20]}  Nxh5 {[%clk 0:01:52]} 19. f5 {[%clk 0:02:12]}  e5 {[%clk 0:01:43]} 20. Kb1 {[%clk 0:01:50]}  Rc8 {[%clk 0:01:35]} 21. Be2 {[%clk 0:01:33]}  Nf6 {[%clk 0:01:34]} 22. Bf3 {[%clk 0:01:28]}  Kf8 {[%clk 0:01:28]} 23. Rxg7 {[%clk 0:01:27]}  Kxg7 {[%clk 0:01:10]} 24. Qg5+ {[%clk 0:01:22]}  Kf8 {[%clk 0:01:03]} 25. Qxf6 {[%clk 0:01:23]}  Rg8 {[%clk 0:00:56]} 26. Na5 {[%clk 0:00:25]}  Ba8 {[%clk 0:00:37]} 27. Rxd6 {[%clk 0:00:15]}  Qxa5 {[%clk 0:00:22]} 28. Rd7 {[%clk 0:00:12]}  Rg7 {[%clk 0:00:19]} 29. h5 {[%clk 0:00:05]}  Bxe4 {[%clk 0:00:15]} 30. Bxe4 {[%clk 0:00:03]}  Rg1+ {[%clk 0:00:14]} 31. Nd1 {[%clk 0:00:04]}  Qa2+ {[%clk 0:00:07]} 32. Kc1 {[%clk 0:00:05]}  Qa1+ {[%clk 0:00:08]} 33. Kd2 {[%clk 0:00:06]}  Qxd1+ {[%clk 0:00:08]} 34. Ke3 {[%clk 0:00:00]}  Qe1+ {[%clk 0:00:08]} 0-1


[Site "https://www.chess.com"]

[Event "Titled Tuesday Blitz July 25 Early 2023"]
[White "Shimanov, Aleksandr"]
[Black "Pakleza, Zbigniew"]
[WhiteFideId "4198603"]
[BlackFideId "1119290"]
[WhiteElo "3003"]
[BlackElo "2785"]
[Result "1/2-1/2"]
[Round "7"]
[TimeControl "180+2"]
[Date "2023.07.25"]
[WhiteClock "0:00:06"]
[BlackClock "0:00:04"]
[Board "21"]

1. e4 {[%clk 0:03:00]}  d6 {[%clk 0:03:00]} 2. d4 {[%clk 0:02:58]}  Nf6 {[%clk 0:03:00]} 3. f3 {[%clk 0:02:57]}  Nbd7 {[%clk 0:03:00]} 4. c4 {[%clk 0:02:56]}  e5 {[%clk 0:03:01]} 5. d5 {[%clk 0:02:54]}  Be7 {[%clk 0:03:01]} 6. Be3 {[%clk 0:02:54]}  O-O {[%clk 0:03:01]} 7. Nc3 {[%clk 0:02:52]}  Nh5 {[%clk 0:03:01]} 8. Qd2 {[%clk 0:02:51]}  g6 {[%clk 0:03:02]} 9. O-O-O {[%clk 0:02:42]}  a6 {[%clk 0:02:54]} 10. Kb1 {[%clk 0:02:31]}  Nc5 {[%clk 0:02:51]} 11. g4 {[%clk 0:02:24]}  Nf4 {[%clk 0:02:46]} 12. Nge2 {[%clk 0:02:25]}  Nxe2 {[%clk 0:02:14]} 13. Bxe2 {[%clk 0:02:24]}  Bh4 {[%clk 0:02:12]} 14. Bd3 {[%clk 0:01:25]}  Nxd3 {[%clk 0:02:02]} 15. Qxd3 {[%clk 0:01:25]}  b6 {[%clk 0:01:55]} 16. Rhg1 {[%clk 0:01:14]}  Bd7 {[%clk 0:01:35]} 17. Qd2 {[%clk 0:01:10]}  Kh8 {[%clk 0:01:27]} 18. Ka1 {[%clk 0:01:07]}  Qe7 {[%clk 0:01:22]} 19. Rg2 {[%clk 0:01:02]}  Rg8 {[%clk 0:01:16]} 20. Rdg1 {[%clk 0:01:00]}  f6 {[%clk 0:00:55]} 21. a3 {[%clk 0:00:59]}  Bg5 {[%clk 0:00:43]} 22. Qf2 {[%clk 0:00:55]}  Bxe3 {[%clk 0:00:25]} 23. Qxe3 {[%clk 0:00:56]}  f5 {[%clk 0:00:26]} 24. g5 {[%clk 0:00:32]}  Rgf8 {[%clk 0:00:16]} 25. h4 {[%clk 0:00:32]}  Be8 {[%clk 0:00:08]} 26. Rh2 {[%clk 0:00:24]}  Qd7 {[%clk 0:00:07]} 27. f4 {[%clk 0:00:20]}  exf4 {[%clk 0:00:03]} 28. Qxf4 {[%clk 0:00:21]}  b5 {[%clk 0:00:02]} 29. cxb5 {[%clk 0:00:19]}  axb5 {[%clk 0:00:03]} 30. e5 {[%clk 0:00:19]}  dxe5 {[%clk 0:00:03]} 31. Qxe5+ {[%clk 0:00:20]}  Qg7 {[%clk 0:00:03]} 32. Re1 {[%clk 0:00:02]}  b4 {[%clk 0:00:03]} 33. Nb1 {[%clk 0:00:02]}  bxa3 {[%clk 0:00:03]} 34. Nxa3 {[%clk 0:00:03]}  Bd7 {[%clk 0:00:04]} 35. Rhe2 {[%clk 0:00:02]}  Rae8 {[%clk 0:00:03]} 36. Qf4 {[%clk 0:00:02]}  Rxe2 {[%clk 0:00:03]} 37. Rxe2 {[%clk 0:00:03]}  Re8 {[%clk 0:00:04]} 38. Rxe8+ {[%clk 0:00:03]}  Bxe8 {[%clk 0:00:04]} 39. Kb1 {[%clk 0:00:03]}  Qe7 {[%clk 0:00:04]} 40. Nc2 {[%clk 0:00:03]}  Kg8 {[%clk 0:00:04]} 41. Ne3 {[%clk 0:00:04]}  Bf7 {[%clk 0:00:04]} 42. Kc2 {[%clk 0:00:04]}  Qc5+ {[%clk 0:00:04]} 43. Kd2 {[%clk 0:00:04]}  Bxd5 {[%clk 0:00:04]} 44. Qe5 {[%clk 0:00:04]}  Qb4+ {[%clk 0:00:03]} 45. Ke2 {[%clk 0:00:02]}  Bf7 {[%clk 0:00:03]} 46. Qxc7 {[%clk 0:00:02]}  Qxb2+ {[%clk 0:00:03]} 47. Kf3 {[%clk 0:00:02]}  Qd4 {[%clk 0:00:03]} 48. Qb8+ {[%clk 0:00:02]}  Kg7 {[%clk 0:00:03]} 49. Qf4 {[%clk 0:00:03]}  Qxf4+ {[%clk 0:00:02]} 50. Kxf4 {[%clk 0:00:03]}  h6 {[%clk 0:00:02]} 51. Ke5 {[%clk 0:00:04]}  hxg5 {[%clk 0:00:02]} 52. hxg5 {[%clk 0:00:04]}  Be8 {[%clk 0:00:02]} 53. Ng2 {[%clk 0:00:04]}  Bb5 {[%clk 0:00:02]} 54. Nf4 {[%clk 0:00:04]}  Ba4 {[%clk 0:00:03]} 55. Ke6 {[%clk 0:00:05]}  Bb3+ {[%clk 0:00:02]} 56. Ke7 {[%clk 0:00:05]}  Ba2 {[%clk 0:00:03]} 57. Kd6 {[%clk 0:00:06]}  Bb3 {[%clk 0:00:03]} 58. Ke5 {[%clk 0:00:07]}  Ba2 {[%clk 0:00:04]} 59. Nd3 {[%clk 0:00:07]}  Bb3 {[%clk 0:00:04]} 60. Nc5 {[%clk 0:00:08]}  Ba2 {[%clk 0:00:04]} 61. Na6 {[%clk 0:00:08]}  Bc4 {[%clk 0:00:05]} 62. Nc7 {[%clk 0:00:09]}  Ba2 {[%clk 0:00:05]} 63. Ne8+ {[%clk 0:00:09]}  Kf7 {[%clk 0:00:05]} 64. Nd6+ {[%clk 0:00:10]}  Kg7 {[%clk 0:00:06]} 65. Nb5 {[%clk 0:00:10]}  Bc4 {[%clk 0:00:05]} 66. Nd4 {[%clk 0:00:11]}  Ba2 {[%clk 0:00:06]} 67. Kd6 {[%clk 0:00:10]}  Bc4 {[%clk 0:00:05]} 68. Kc5 {[%clk 0:00:08]}  Ba2 {[%clk 0:00:05]} 69. Ne2 {[%clk 0:00:08]}  Kf7 {[%clk 0:00:05]} 70. Nf4 {[%clk 0:00:09]}  Bb3 {[%clk 0:00:04]} 71. Kb4 {[%clk 0:00:10]}  Ba2 {[%clk 0:00:05]} 72. Kc3 {[%clk 0:00:10]}  Be6 {[%clk 0:00:04]} 73. Kd4 {[%clk 0:00:09]}  Ba2 {[%clk 0:00:04]} 74. Nd3 {[%clk 0:00:09]}  Kg7 {[%clk 0:00:04]} 75. Ke5 {[%clk 0:00:08]}  Bb3 {[%clk 0:00:04]} 76. Nc5 {[%clk 0:00:09]}  Ba2 {[%clk 0:00:04]} 77. Nd3 {[%clk 0:00:06]} 1/2-1/2


[Site "https://www.chess.com"]

[Event "Titled Tuesday Blitz July 25 Early 2023"]
[White "Kosteniuk, Alexandra"]
[Black "Maghsoodloo, Parham"]
[WhiteFideId "4128125"]
[BlackFideId "12539929"]
[WhiteElo "2781"]
[BlackElo "2931"]
[Result "0-1"]
[Round "7"]
[TimeControl "180+2"]
[Date "2023.07.25"]
[WhiteClock "0:00:17"]
[BlackClock "0:00:54"]
[Board "22"]

1. e4 {[%clk 0:03:00]}  c5 {[%clk 0:02:56]} 2. c3 {[%clk 0:03:01]}  Nf6 {[%clk 0:02:54]} 3. e5 {[%clk 0:03:01]}  Nd5 {[%clk 0:02:52]} 4. Nf3 {[%clk 0:03:02]}  e6 {[%clk 0:02:52]} 5. d4 {[%clk 0:03:01]}  cxd4 {[%clk 0:02:49]} 6. cxd4 {[%clk 0:03:02]}  d6 {[%clk 0:02:49]} 7. Bc4 {[%clk 0:03:02]}  Nb6 {[%clk 0:02:47]} 8. Bd3 {[%clk 0:02:59]}  Nc6 {[%clk 0:02:48]} 9. O-O {[%clk 0:02:52]}  Nb4 {[%clk 0:02:45]} 10. Be4 {[%clk 0:02:50]}  d5 {[%clk 0:02:45]} 11. Bd3 {[%clk 0:02:51]}  Nxd3 {[%clk 0:02:46]} 12. Qxd3 {[%clk 0:02:51]}  Bd7 {[%clk 0:02:46]} 13. Nc3 {[%clk 0:02:50]}  a5 {[%clk 0:02:44]} 14. Bd2 {[%clk 0:02:38]}  Nc4 {[%clk 0:02:37]} 15. Rab1 {[%clk 0:02:28]}  Be7 {[%clk 0:02:23]} 16. Rfe1 {[%clk 0:02:23]}  O-O {[%clk 0:02:22]} 17. b3 {[%clk 0:02:21]}  Nxd2 {[%clk 0:02:20]} 18. Nxd2 {[%clk 0:02:19]}  Rc8 {[%clk 0:02:19]} 19. Ne2 {[%clk 0:02:18]}  Qb6 {[%clk 0:02:12]} 20. Nf4 {[%clk 0:02:15]}  Bb5 {[%clk 0:02:02]} 21. Qe3 {[%clk 0:02:15]}  Rc2 {[%clk 0:02:02]} 22. Nf3 {[%clk 0:01:51]}  Rfc8 {[%clk 0:02:01]} 23. Rec1 {[%clk 0:01:43]}  Qc7 {[%clk 0:01:56]} 24. Rd1 {[%clk 0:01:02]}  Qc3 {[%clk 0:01:45]} 25. a4 {[%clk 0:01:02]}  Qxe3 {[%clk 0:01:37]} 26. fxe3 {[%clk 0:01:01]}  Ba6 {[%clk 0:01:38]} 27. Ne1 {[%clk 0:00:57]}  R2c3 {[%clk 0:01:33]} 28. Nfd3 {[%clk 0:00:57]}  Bg5 {[%clk 0:01:30]} 29. Kf2 {[%clk 0:00:57]}  b6 {[%clk 0:01:30]} 30. g3 {[%clk 0:00:57]}  f6 {[%clk 0:01:29]} 31. h4 {[%clk 0:00:56]}  Bh6 {[%clk 0:01:29]} 32. exf6 {[%clk 0:00:55]}  gxf6 {[%clk 0:01:26]} 33. Rb2 {[%clk 0:00:50]}  Kf7 {[%clk 0:01:18]} 34. Rdd2 {[%clk 0:00:39]}  Ke7 {[%clk 0:01:03]} 35. b4 {[%clk 0:00:36]}  e5 {[%clk 0:00:57]} 36. bxa5 {[%clk 0:00:36]}  exd4 {[%clk 0:00:56]} 37. exd4 {[%clk 0:00:32]}  Bxd2 {[%clk 0:00:55]} 38. Rxd2 {[%clk 0:00:33]}  Bxd3 {[%clk 0:00:55]} 39. Nxd3 {[%clk 0:00:31]}  Rc2 {[%clk 0:00:55]} 40. Ke3 {[%clk 0:00:30]}  Rxd2 {[%clk 0:00:54]} 41. Kxd2 {[%clk 0:00:30]}  bxa5 {[%clk 0:00:54]} 42. Nf4 {[%clk 0:00:21]}  Kd6 {[%clk 0:00:54]} 43. Nh5 {[%clk 0:00:20]}  Rc4 {[%clk 0:00:54]} 44. Kd3 {[%clk 0:00:17]}  Rxa4 {[%clk 0:00:54]} 0-1


[Site "https://www.chess.com"]